Cogmind - Beta 16 @@@ ROGUE MODE // 2025.10.22 @ 21:30:54 Player: FrigidRock Result: Smashed by cave-in Performance ------------- Evolutions (5) 2500 Regions Visited (22) 4400 Robots Destroyed (126) 630 Value Destroyed (3960) 3960 Prototype IDs (44) 880 Alien Tech Used (1) 200 Bonus (3474) 3474 TOTAL SCORE: 16044 Bonus ------- High Alert Combat Kills 198 Follower Combat Kills 2939 Met Data Miner 300 Met Imprinter 300 Was Imprinted 300 Built Enhanced Grunts 300 A7 Reached Mainframe 300 Friendly Fire -1163 Cogmind --------- Core Integrity 0/1000 Matter 252/300 Energy 100/100 System Corruption 56% Temperature Cool (0) Movement Core (50) Location -5/Hub_04(d) Parts ------- > --- POWER (2) -------- (None) > --- PROPULSION (4) --- (None) > --- UTILITY (7) ------ (None) > --- WEAPON (4) ------- (None) > --- INVENTORY (5) ---- Storm Laser Peak State ------------ > --- POWER ------------ Zionite Light DM Reactor Zionite Light DM Reactor > --- PROPULSION ------- Combat Airjet Combat Airjet Zionite Glidesys I Zionite Glidesys I > --- UTILITY ---------- Experimental Heat Sink Zionite Biocell Advanced Targeting Computer Core Analyzer Phase Shifter Zionite Light Carapace Remote Force Field > --- WEAPON ----------- Storm Laser > --- INVENTORY -------- Neutrino Core Combat Airjet Zionite Glidesys I Structural Scanner Zionite Light Carapace [Rating: 101] Favorites ----------- Power Ion Engine Engine Ion Engine Power Core Light Fission Core Reactor Zionite Light DM Reactor Propulsion Aluminum Leg Leg Aluminum Leg Hover Unit Combat Airjet Flight Unit Surge Thruster Utility Advanced Targeting Computer Device Improved Terrain Scanner Storage Large Storage Unit Processor Advanced Targeting Computer Hackware Experimental Hacking Suite Protection Zionite Light Carapace Weapon Medium Laser Energy Gun Medium Laser Energy Cannon Beam Cannon Ballistic Gun Flak Gun Ballistic Cannon Advanced Assault Cannon Launcher Rocket Launcher Slashing Weapon Blade Saw Piercing Weapon CR-A16's Pointy Stick Build | -11 -10 -10 -10 -9 -8 -7 -7 -7 -7 -6 -6 -6 -6 -6 -5 -5 -5 -5 -5 -5 -5 -5 ------- Run | Yrd Mat Min Exi Min Mat Fac Low Low Zio Pro Fac Low Low Dat Pro Fac Was Fac Ext Cet Arc Hub Slots Evolved 10 | . . . . . 4 2 . . . . 2 . . . . 2 . . . . . . Power 1 | . . . . . . 1 . . . . . . . . . . . . . . . . Propulsion 2 | . . . . . 2 . . . . . . . . . . . . . . . . . Utility 5 | . . . . . 1 1 . . . . 2 . . . . 1 . . . . . . Weapon 2 | . . . . . 1 . . . . . . . . . . 1 . . . . . . Parts Attached 127 | 7 . 2 1 . 28 23 1 . 8 2 8 4 1 . 3 6 . 16 8 2 4 3 Power 19 | 1 . . . . 3 5 . . . 1 1 . . . 1 2 . 2 3 . . . Engine 9 | 1 . . . . . 5 . . . 1 . . . . . . . 2 . . . . Core 7 | . . . . . 3 . . . . . 1 . . . 1 2 . . . . . . Reactor 3 | . . . . . . . . . . . . . . . . . . . 3 . . . Propulsion 31 | 2 . . . . 10 4 . . 2 . 2 . . . . . . 5 3 . 2 1 Treads . | . . . . . . . . . . . . . . . . . . . . . . . Leg 13 | 2 . . . . 4 3 . . 2 . 2 . . . . . . . . . . . Wheel . | . . . . . . . . . . . . . . . . . . . . . . . Hover 11 | . . . . . . . . . . . . . . . . . . 5 3 . 2 1 Flight 7 | . . . . . 6 1 . . . . . . . . . . . . . . . . Utility 41 | 2 . 1 1 . 4 7 1 . 5 . 3 1 1 . 1 2 . 7 2 . 2 1 Device 18 | 1 . 1 . . 2 3 1 . . . 2 1 . . 1 2 . 2 1 . 1 . Storage 5 | 1 . . 1 . 1 . . . . . . . . . . . . 1 . . 1 . Processor 11 | . . . . . 1 2 . . 5 . . . 1 . . . . 2 . . . . Hackware 3 | . . . . . . 1 . . . . 1 . . . . . . 1 . . . . Protection 4 | . . . . . . 1 . . . . . . . . . . . 1 1 . . 1 Artifact . | . . . . . . . . . . . . . . . . . . . . . . . Weapon 36 | 2 . 1 . . 11 7 . . 1 1 2 3 . . 1 2 . 2 . 2 . 1 Energy Gun 13 | 2 . . . . 2 2 . . . . 1 1 . . . 2 . 2 . 1 . . Energy Cannon 2 | . . 1 . . 1 . . . . . . . . . . . . . . . . . Ballistic Gun 10 | . . . . . 2 3 . . 1 . . 2 . . 1 . . . . 1 . . Ballistic Cannon 6 | . . . . . 5 1 . . . . . . . . . . . . . . . . Launcher 3 | . . . . . . 1 . . . . 1 . . . . . . . . . . 1 Special Weapon . | . . . . . . . . . . . . . . . . . . . . . . . Impact Weapon . | . . . . . . . . . . . . . . . . . . . . . . . Slashing Weapon 1 | . . . . . 1 . . . . . . . . . . . . . . . . . Piercing Weapon 1 | . . . . . . . . . . 1 . . . . . . . . . . . . Special Melee Weapon . | . . . . . . . . . . . . . . . . . . . . . . . Unidentified Prototypes 27 | . . . . . 3 4 . . 4 . 4 1 . . . 1 . 1 4 2 1 2 Corrupted Parts 1 | . . . . . . . . . . . . . . . . . . . . 1 . . System Corruption 4 | . . . . . . . . . . . . . . . . . . . . 4 . . Parts Lost 46 | . . 1 . . 9 5 . . . . 2 . 1 . 8 1 4 . . . 1 14 Power 8 | . . . . . 2 1 . . . . . . . . 2 . 1 . . . . 2 Propulsion 12 | . . . . . 2 3 . . . . . . . . 1 . 1 . . . 1 4 Utility 19 | . . 1 . . 2 1 . . . . 1 . 1 . 2 1 2 . . . . 8 Weapon 7 | . . . . . 3 . . . . . 1 . . . 3 . . . . . . . Highest Loss Streak 6 | . . 1 . . 6 2 . . . . 1 . 1 . 6 1 4 . . . 1 6 To Critical Strikes . | . . . . . . . . . . . . . . . . . . . . . . . Average Backups 6 | . 1 3 4 6 8 11 11 12 12 12 9 10 10 9 9 6 6 2 4 4 4 2 Power . | . . . 1 1 . 1 . 1 1 1 1 1 1 1 . . . . . 1 1 . Propulsion . | . . . . . 1 1 1 1 1 1 1 1 1 1 . . . 1 1 1 1 . Utility 2 | . . . . 2 2 3 4 5 5 7 4 5 5 4 4 4 2 . 1 2 2 . Weapon 2 | . 1 2 3 3 4 5 5 5 4 3 3 3 3 3 3 2 3 . 1 . . . Tool/Special . | . . . . . . . . . . . . . . . . . . . . . . . Unused Backups 15 | . . . . . 9 . . . 2 . 1 . . . . . 1 . . 1 . 1 Power 2 | . . . . . 2 . . . . . . . . . . . . . . . . . Propulsion 5 | . . . . . 3 . . . 1 . . . . . . . . . . . . 1 Utility 3 | . . . . . . . . . 1 . 1 . . . . . 1 . . . . . Weapon 5 | . . . . . 4 . . . . . . . . . . . . . . 1 . . Tool/Special . | . . . . . . . . . . . . . . . . . . . . . . . Average Slot Usage (%) 84 | . 100 97 100 100 83 98 100 100 97 100 87 85 85 68 80 52 55 71 80 81 81 36 Engine 8 | . 14 14 14 14 2 12 15 15 15 15 11 6 6 6 5 . . 3 3 . . . Core 1 | . . . . . 5 1 . . . . . 6 6 6 5 . 8 . . . . . Reactor 1 | . . . . . . . . . . . . . . . . . . . 7 11 11 4 Leg 17 | . 28 28 28 28 22 29 30 30 30 30 14 13 13 13 12 11 8 . . . . . Hover 4 | . . . . . . . . . . . . . . . . . . 21 21 23 22 11 Device 8 | . 14 12 14 14 6 6 6 7 6 . 6 5 5 6 5 10 14 14 15 17 17 10 Storage 6 | . 14 14 14 14 9 7 7 7 7 7 6 6 6 6 6 5 4 3 . . 2 1 Processor 13 | . . . . . 8 8 15 15 16 23 20 20 20 20 19 11 11 17 17 17 13 3 Hackware 1 | . . . . . . . . . . . 5 6 6 6 6 4 . . . . . . Protection 1 | . . . . . . 4 . . . . . . . . . . 3 . 6 5 5 1 Energy Gun 4 | . 28 16 14 14 3 6 . . . . . 5 5 . 2 4 . 7 5 4 5 1 Energy Cannon 1 | . . 11 14 14 2 . . . . . . . . . . . . . . . . . Ballistic Gun 7 | . . . . . 2 11 7 7 12 14 13 11 13 2 12 . . . . . . . Ballistic Cannon 2 | . . . . . 11 3 7 7 5 7 1 . . . . . . . . . . . Launcher 1 | . . . . . . . 7 7 . . 4 1 . . . . . . . . . . Peak Build Rating 101 | 9 9 9 9 9 41 50 46 46 66 64 87 86 86 80 82 65 65 76 100 100 101 101 Average Rating 44 | 8 9 8 9 9 27 44 46 46 50 63 80 85 84 69 76 60 37 58 91 95 99 41 On Entrance 50 | . 9 9 9 9 9 41 46 46 46 64 64 76 86 80 80 37 65 12 73 100 99 101 Avg Prop Armor Cover (%) 16 | . . . . . . . . . . . . . . . . . . 16 . . . . Naked Turns 326 | . . . . . . . . . . . . . . . . . . . . . . 326 Heaviest Build 66 | 14 14 16 21 21 44 63 63 56 56 59 66 60 56 53 57 61 61 42 57 51 52 52 Greatest Support 80 | 20 20 20 20 20 80 80 70 70 75 75 75 72 72 72 72 54 54 48 52 52 52 52 Greatest Overweight (x) 7 | 1 . . 1 1 7 . . . . . . . . . 1 1 1 1 1 . 1 . Average Overweight (x) . | . . . . 1 . . . . . . . . . . . . . . . . . . Largest Inventory Capacity 15 | 8 8 8 10 10 15 15 15 15 15 15 15 15 15 15 15 15 15 5 5 5 5 5 Average Capacity 10 | 7 8 8 8 10 11 15 15 15 15 15 15 15 15 15 15 15 13 5 5 5 5 5 Most Carried 15 | 1 1 4 6 6 14 13 12 12 15 15 15 14 14 12 14 11 11 5 5 5 5 5 Average Carried 7 | . 1 3 4 6 8 11 11 12 13 15 12 13 13 12 12 7 9 4 4 4 4 4 Final Capacity 15 | 8 8 8 10 10 15 15 15 15 15 15 15 15 15 15 15 15 5 5 5 5 5 5 Final Carried 15 | 1 1 4 6 6 14 10 12 12 15 15 14 14 12 12 11 6 5 4 5 4 5 4 Class Distribution -------------------- 38% | Mutant 27% | Gunner 11% | Skirmisher 4% | Commander-Mutant 4% | Commander-Tank 4% | Derelict-Gunner 3% | Scavenger-Gunner Dominant Class ---------------- Mutant | -10/Materials Mutant | -10/Mines Mutant | -10/Exiles Mutant | -9/Mines Gunner | -8/Materials Gunner | -7/Factory Skirmisher | -7/Lower Caves Skirmisher | -7/Lower Caves Skirmisher | -7/Zion Gunner | -6/Proximity Caves Gunner | -6/Factory Derelict-Gunner | -6/Lower Caves Derelict-Gunner | -6/Lower Caves Mutant | -6/Data Miner Mutant | -5/Proximity Caves Skirmisher | -5/Factory Scavenger-Mutant | -5/Waste Mutant | -5/Factory Messiah-Tank | -5/Extension Commander-Tank | -5/Cetus Commander-Tank | -5/Archives Commander-Mutant | -5/Hub_04(d) Resources | -11 -10 -10 -10 -9 -8 -7 -7 -7 -7 -6 -6 -6 -6 -6 -5 -5 -5 -5 -5 -5 -5 -5 ----------- Run | Yrd Mat Min Exi Min Mat Fac Low Low Zio Pro Fac Low Low Dat Pro Fac Was Fac Ext Cet Arc Hub Matter Collected 4408 | 270 . 10 10 . 794 836 236 . 154 150 438 179 107 . 261 93 . 385 240 46 77 122 Remotely . | . . . . . . . . . . . . . . . . . . . . . . . Salvage Created 4133 | 341 . 221 . . 618 1109 196 . . 97 568 34 67 . 103 71 . 280 253 68 . 107 Parts 230 | 30 . 15 . . 38 46 8 . . 6 35 2 1 . 7 7 . 14 11 3 . 7 Haulers Intercepted . | . . . . . . . . . . . . . . . . . . . . . . . Recyclers Shooed 7 | . . . . . . 5 . . . . 1 . . . . . . 1 . . . . Parts Field Recycled . | . . . . . . . . . . . . . . . . . . . . . . . Retrieved Matter . | . . . . . . . . . . . . . . . . . . . . . . . Parts Self-Destructed 41 | . . . . . . . 7 . . 10 . 5 6 . 13 . . . . . . . Prevented 4 | . . . . . . . . . . 3 . . 1 . . . . . . . . . Parts Restored . | . . . . . . . . . . . . . . . . . . . . . . . Kills | -11 -10 -10 -10 -9 -8 -7 -7 -7 -7 -6 -6 -6 -6 -6 -5 -5 -5 -5 -5 -5 -5 -5 ------- Run | Yrd Mat Min Exi Min Mat Fac Low Low Zio Pro Fac Low Low Dat Pro Fac Was Fac Ext Cet Arc Hub Combat Hostiles Destroyed 79 | . . 7 . . 24 15 7 . . 3 9 1 1 . 7 1 . . 3 . . 1 Guns 29 | . . 7 . . 2 8 2 . . 1 2 . 1 . 1 1 . . 3 . . 1 Cannons 32 | . . . . . 22 5 1 . . 2 2 . . . . . . . . . . . AOE 18 | . . . . . . 2 4 . . . 5 1 . . 6 . . . . . . . Classes Destroyed 17 | 3 . 2 . . 4 4 . . . . 3 . 1 . . . . . . . . . Worker 10 | 4 . . . . . . . . . . . . . . . . . 6 . . . . Builder 6 | . . . . . . . . . . . 3 . . . . 2 . . . . . 1 Tunneler 14 | 9 . 3 . . . . . . . . . . . . . . . . 1 . . 1 Recycler 7 | 1 . . . . . 5 . . . . . . . . . . . 1 . . . . Mechanic 1 | . . . . . . 1 . . . . . . . . . . . . . . . . Operator 1 | . . . . . . . . . . . 1 . . . . . . . . . . . Watcher 4 | . . . . . 1 2 . . . . . . . . . . . . 1 . . . Swarmer 21 | . . 5 . . 6 . 3 . . 2 . . . . 4 1 . . . . . . Cutter 5 | . . . . . 5 . . . . . . . . . . . . . . . . . Grunt 24 | . . 2 . . 9 6 3 . . . 4 . . . . . . . . . . . Brawler 4 | . . . . . . 2 1 . . 1 . . . . . . . . . . . . Duelist 1 | . . . . . 1 . . . . . . . . . . . . . . . . . Sentry 8 | . . . . . 3 . . . . . 2 . . . . . . . 2 . . 1 Hunter 6 | . . . . . . 3 . . . . . . . . 3 . . . . . . . Programmer 8 | . . . . . . 4 . . . . 3 1 . . . . . . . . . . Z-Light 3 | . . . . . . . . . . . 3 . . . . . . . . . . . Thug 1 | . . . . . . . . . . . . . . . . . . . . 1 . . Savage 1 | . . . . . . . . . . . . . . . . . . . 1 . . . Mutant 1 | . . . . . . . . . . . . . 1 . . . . . . . . . Best Kill Streak 7 | 5 . 4 . . 7 4 4 . . 2 6 1 1 . 5 1 . 2 2 . . 1 Combat Bots Only 6 | . . 3 . . 6 3 4 . . 2 3 1 1 . 5 1 . . 2 . . 1 Max Kills in Single Turn 8 | 2 . 1 . . 2 2 2 . . 1 8 1 1 . 3 1 . 1 2 1 . 1 Gunslinging . | . . . . . . . . . . . . . . . . . . . . . . . Exploded 3 | . . . . . . 2 2 . . . 3 1 . . 3 . . . . . . . Melee . | . . . . . . . . . . . . . . . . . . . . . . . Uniques/NPCs Destroyed . | . . . . . . . . . . . . . . . . . . . . . . . Combat | -11 -10 -10 -10 -9 -8 -7 -7 -7 -7 -6 -6 -6 -6 -6 -5 -5 -5 -5 -5 -5 -5 -5 -------- Run | Yrd Mat Min Exi Min Mat Fac Low Low Zio Pro Fac Low Low Dat Pro Fac Was Fac Ext Cet Arc Hub Hostile Shots Fired 495 | . . 36 . . 155 66 4 . . 13 54 3 24 . 98 18 4 2 4 9 2 3 Missed 168 | . . 10 . . 52 14 1 . . 5 22 1 12 . 33 7 . 2 1 7 . 1 Hits 327 | . . 26 . . 103 52 3 . . 8 32 2 12 . 65 11 4 . 3 2 2 2 Melee 18 | . . . . . 7 5 . . . . . . . . 2 . 4 . . . . . Projectile 309 | . . 26 . . 96 47 3 . . 8 32 2 12 . 63 11 . . 3 2 2 2 AOE 3 | . . . . . 2 . . . . . . . . . . . . . . . . 1 Critical Strikes 14 | . . . . . 5 3 1 . . . 1 . . . 3 . 1 . . . . . Part Disruptions 2 | . . . . . . . . . . . 2 . . . . . . . . . . . Damage Taken 7802 | . . 243 . . 1617 1072 56 . . 146 765 46 145 . 1277 159 196 33 97 28 38 1884 Core 1842 | . . 51 . . 230 44 20 . . 25 67 . 47 . 351 18 125 . 31 . . 833 Absorbed by Shields 288 | . . . . . . . . . . . 64 . . . 8 . . . 23 27 12 154 Regen/Repaired (Parts) 278 | . . . . . . 265 . . . . 13 . . . . . . . . . . . Core Remaining (%) 73 | 100 . . . 79 58 . . . . 87 . . . . 45 . . . . . . . Volleys Fired 287 | 42 . 30 . . 58 58 5 . 2 7 24 6 7 . 18 3 . 18 3 3 . 3 Largest 3 | 2 . 2 . . 3 3 3 . 1 3 3 2 3 . 3 1 . 2 1 1 . 1 Hottest 250 | 90 . 110 . . 145 130 101 . 40 93 93 79 112 . 112 250 . 170 250 250 . 250 Shots Fired 650 | 81 . 60 . . 156 146 14 . 2 21 48 8 19 . 39 3 . 36 6 4 . 7 Gun 414 | 81 . 43 . . 33 101 5 . 1 14 32 3 18 . 27 3 . 36 6 4 . 7 Cannon 198 | . . 17 . . 123 39 5 . 1 7 6 . . . . . . . . . . . Launcher 38 | . . . . . . 6 4 . . . 10 5 1 . 12 . . . . . . . Special . | . . . . . . . . . . . . . . . . . . . . . . . Kinetic 322 | . . . . . 111 100 10 . 2 21 38 2 12 . 26 . . . . . . . Thermal 243 | 81 . 60 . . 32 14 . . . . . . . . . 3 . 36 6 4 . 7 Explosive 38 | . . . . . . 6 4 . . . 10 5 1 . 12 . . . . . . . Electromagnetic 47 | . . . . . 13 26 . . . . . 1 6 . 1 . . . . . . . Robot Hit Streak 12 | 5 . 6 . . 11 10 2 . . 4 7 2 6 . 5 8 . 12 7 4 . 6 Robot Miss Streak 18 | 4 . 3 . . 9 5 7 . . 5 3 . 2 . 4 3 . 2 12 7 . 18 Penetration Max . | . . . . . . . . . . . . . . . . . . . . . . . Secondary Targets . | . . . . . . . . . . . . . . . . . . . . . . . Shots Hit Robots 371 | 36 . 32 . . 81 86 7 . . 17 30 2 14 . 26 3 . 25 5 3 . 4 Core Hits 271 | 15 . 13 . . 46 63 18 . . 12 35 2 11 . 18 3 . 13 12 3 . 7 Critical Kills 2 | . . . . . . . . . . . 2 . . . . . . . . . . . Critical Parts Destroyed . | . . . . . . . . . . . . . . . . . . . . . . . Critical Strikes 15 | 3 . 1 . . 5 1 1 . . 1 2 . . . . . . 1 . . . . Burn 5 | 3 . 1 . . . . . . . . . . . . . . . 1 . . . . Destroy 2 | . . . . . . . . . . . 2 . . . . . . . . . . . Blast 8 | . . . . . 5 1 1 . . 1 . . . . . . . . . . . . Melee Attacks 2 | . . . . . 1 . . . . 1 . . . . . . . . . . . . Impact . | . . . . . . . . . . . . . . . . . . . . . . . Slashing 1 | . . . . . 1 . . . . . . . . . . . . . . . . . Piercing 1 | . . . . . . . . . . 1 . . . . . . . . . . . . Sneak Attacks . | . . . . . . . . . . . . . . . . . . . . . . . Combat Hostiles . | . . . . . . . . . . . . . . . . . . . . . . . Follow-up Attacks . | . . . . . . . . . . . . . . . . . . . . . . . Damage Inflicted 10581 | 446 . 432 . . 1809 2233 426 . . 369 1784 107 358 . 1150 84 . 494 399 253 . 237 Guns 5011 | 446 . 292 . . 225 1248 43 . . 172 498 23 274 . 332 75 . 494 399 253 . 237 Cannons 2484 | . . 140 . . 1578 424 50 . . 163 129 . . . . . . . . . . . Explosions 2996 | . . . . . . 556 333 . . . 1157 48 84 . 818 . . . . . . . Melee 34 | . . . . . . . . . . 34 . . . . . . . . . . . . Ramming 56 | . . . . . 6 5 . . . . . 36 . . . 9 . . . . . . Kinetic 4122 | . . . . . 1469 1089 93 . . 335 627 23 175 . 311 . . . . . . . Thermal 3984 | 446 . 432 . . 177 553 . . . . 918 . . . . 75 . 494 399 253 . 237 Explosive 1715 | . . . . . . 193 333 . . . 239 48 84 . 818 . . . . . . . Electromagnetic 670 | . . . . . 157 393 . . . . . . 99 . 21 . . . . . . . Impact . | . . . . . . . . . . . . . . . . . . . . . . . Slashing . | . . . . . . . . . . . . . . . . . . . . . . . Piercing 34 | . . . . . . . . . . 34 . . . . . . . . . . . . Highest Corruption 56 | . . . . . . 3 3 3 3 . 3 3 4 4 4 . 12 12 16 20 20 56 Average Corruption 11 | . . . . . . 2 3 3 3 . 1 3 3 4 4 . 6 12 15 19 20 39 Corruption Purged . | . . . . . . . . . . . . . . . . . . . . . . . Corruption Blocked . | . . . . . . . . . . . . . . . . . . . . . . . Effects 244 | . . . . . . 23 5 6 4 . . 11 9 2 21 . 4 26 51 11 10 61 Message Errors 47 | . . . . . . 6 1 1 1 . . 4 1 1 5 . . 5 9 1 5 7 Matter Fused 69 | . . . . . . 6 1 4 1 . . 2 2 . 8 . . 8 14 3 . 20 Heat Flow Errors 27 | . . . . . . 1 2 1 . . . 1 1 . 1 . 1 3 7 1 3 5 Energy Discharges 28 | . . . . . . 3 . . . . . 2 2 . 2 . 2 2 7 1 1 6 Parts Rejected 4 | . . . . . . . . . . . . . . . 1 . 1 . 2 . . . Parts Fused 2 | . . . . . . . . . . . . . . . . . . 1 1 . . . Data Loss (minor) 32 | . . . . . . 5 1 . 2 . . . 2 1 1 . . 2 5 1 . 12 Data Loss (major) 13 | . . . . . . . . . . . . 1 1 . 1 . . 3 2 2 . 3 Misfires 13 | . . . . . . 2 . . . . . . . . 2 . . 1 3 1 . 4 Alerts 3 | . . . . . . . . . . . . 1 . . . . . . . . . 2 Misdirections 5 | . . . . . . . . . . . . . . . . . . . 1 1 1 2 Weapon Failures 1 | . . . . . . . . . . . . . . . . . . 1 . . . . Overload Shots 1 | . . . . . . . . . . . . . . . . . . . . 1 . . Overflow Damage 454 | . . 15 . . 72 21 . . . 3 266 27 . . 50 . . . . . . . Projectiles 77 | . . 15 . . 33 6 . . . 3 20 . . . . . . . . . . . Explosions 350 | . . . . . 39 15 . . . . 246 . . . 50 . . . . . . . Melee 27 | . . . . . . . . . . . . 27 . . . . . . . . . . Knockbacks 23 | . . . . . 21 2 . . . . . . . . . . . . . . . . Impact . | . . . . . . . . . . . . . . . . . . . . . . . Kinetic 23 | . . . . . 21 2 . . . . . . . . . . . . . . . . Secondary . | . . . . . . . . . . . . . . . . . . . . . . . Self-Inflicted Damage 512 | . . . . . 84 176 5 . . . 190 13 . . 44 . . . . . . . Shots 12 | . . . . . 1 4 1 . . . 4 1 . . 1 . . . . . . . Rammed . | . . . . . . . . . . . . . . . . . . . . . . . Targets Rammed 7 | . . . . . 1 1 . . . . 2 2 . . . 1 . . . . . . Kicked 7 | . . . . . 1 1 . . . . 2 2 . . . 1 . . . . . . Crushed . | . . . . . . . . . . . . . . . . . . . . . . . Highest Temperature 378 | 340 . 300 . . 252 331 280 138 1 113 63 169 232 . 157 88 211 240 280 378 185 280 Average Temperature 91 | 108 . 100 . . 89 78 75 74 1 56 27 57 93 . 58 42 119 82 94 151 77 103 Received Heat Transfer 1271 | . . 66 . . 567 225 18 . . 9 16 9 12 . 300 . . . 29 . . 20 Effects 5 | 1 . 1 . . . 3 . . . . . . . . . . . . . . . . Energy Bleed 2 | 1 . 1 . . . . . . . . . . . . . . . . . . . . Interference 3 | . . . . . . 3 . . . . . . . . . . . . . . . . Siege Activations . | . . . . . . . . . . . . . . . . . . . . . . . Martial Activations . | . . . . . . . . . . . . . . . . . . . . . . . Shielding Activations . | . . . . . . . . . . . . . . . . . . . . . . . Robots Disrupted . | . . . . . . . . . . . . . . . . . . . . . . . Combat Hostiles . | . . . . . . . . . . . . . . . . . . . . . . . Robots Corrupted . | . . . . . . . . . . . . . . . . . . . . . . . Combat Hostiles . | . . . . . . . . . . . . . . . . . . . . . . . Parts Fried 1 | . . . . . . . . . . . . . 1 . . . . . . . . . Impact Corruptions 1 | . . . . . . . . . . . . 1 . . . . . . . . . . Robots Melted . | . . . . . . . . . . . . . . . . . . . . . . . Combat Hostiles . | . . . . . . . . . . . . . . . . . . . . . . . Parts Melted 14 | 5 . 1 . . 1 . . . . . 1 . . . . . . 4 2 . . . Heat Transferred 7087 | 1399 . 1162 . . 407 683 . . . . 650 . . . . 112 . 1450 575 299 . 350 Parts Sabotaged 3 | . . . . . . . . . . . . . . . 3 . . . . . . . Parts Stolen . | . . . . . . . . . . . . . . . . . . . . . . . Parts Stripped . | . . . . . . . . . . . . . . . . . . . . . . . Power Chain Reactions 3 | . . . . . . 3 . . . . . . . . . . . . . . . . Alert | -11 -10 -10 -10 -9 -8 -7 -7 -7 -7 -6 -6 -6 -6 -6 -5 -5 -5 -5 -5 -5 -5 -5 ------- Run | Yrd Mat Min Exi Min Mat Fac Low Low Zio Pro Fac Low Low Dat Pro Fac Was Fac Ext Cet Arc Hub Maximum Alert Level 2 | . . . . . 2 2 . . . . 2 . . . . . . . 2 1 1 2 Low Security (%) 63 | 100 100 100 . 100 44 21 . . . . 21 . . . . 100 100 100 60 . 18 9 Level 1 23 | . . . . . 15 74 . . . . 60 . . . . . . . 22 100 81 13 Level 2 13 | . . . . . 39 3 . . . . 18 . . . . . . . 16 . . 76 Level 3 . | . . . . . . . . . . . . . . . . . . . . . . . Level 4 . | . . . . . . . . . . . . . . . . . . . . . . . Level 5 . | . . . . . . . . . . . . . . . . . . . . . . . High Security . | . . . . . . . . . . . . . . . . . . . . . . . Max Security . | . . . . . . . . . . . . . . . . . . . . . . . Peak Influence 624 | 20 . 125 . . 513 575 . . . . 527 . . . . 70 24 174 487 385 267 624 Initial 242 | . . . . . . 227 . . . . 32 . . . . 31 24 . 65 242 126 68 Average 146 | . . 51 . . 251 263 . . . . 270 . . . . 7 6 34 185 336 220 425 Influence Increases 7173 | 70 . 260 . . 967 954 160 . . 256 992 30 203 . 253 90 . 275 946 193 181 1343 Destroy 0b10 Robot/C 2880 | . . 140 . . 480 300 140 . . 160 300 20 20 . 160 60 . 120 400 80 80 420 Destroy 0b10 Robot/NC 290 | 70 . 15 . . 5 40 . . . . 25 . . . . 10 . 45 25 5 . 50 Destroy Leader 594 | . . 30 . . 102 94 20 . . 30 92 10 . . 30 10 . 44 44 . . 88 Allied During Kill 1388 | . . . . . . . . . . 66 138 . 3 . 3 10 . 50 395 85 80 558 Successful Hack 37 | . . . . . 17 10 . . . . 10 . . . . . . . . . . . Disable Machine 480 | . . . . . 30 120 . . . . 165 . . . . . . . 15 15 15 120 Anti-Garrison Action 350 | . . . . . . 200 . . . . 150 . . . . . . . . . . . Destroy Structure 419 | . . . . . 48 115 . . . . 112 . . . . . . 16 52 8 6 62 Partial Spotted 75 | . . . . . 30 30 . . . . . . . . . . . . 15 . . . Lose Combat Pursuer 660 | . . 75 . . 255 45 . . . . . . 180 . 60 . . . . . . 45 Influence Decreases 6626 | 70 . 260 . . 466 883 352 223 157 204 747 327 203 . 203 70 70 141 647 311 299 993 Entered New Map 1490 | . . . . . . 274 212 73 157 . 20 111 . . . 19 46 . 69 191 189 129 Time Decay 4072 | 70 . 250 . . 376 559 140 150 . 184 567 216 191 . 105 41 20 121 438 100 80 464 Lost Part 410 | . . 10 . . 90 50 . . . . 20 . 10 . 70 10 . . . . 10 140 Lost Ally 654 | . . . . . . . . . . 20 140 . 2 . 28 . 4 20 140 20 20 260 Squads Dispatched 32 | . . . . . 7 6 . . . . 12 . 1 . 1 . . 2 . . . 3 Investigation 5 | . . . . . 2 2 . . . . 1 . . . . . . . . . . . Extermination 9 | . . . . . . 3 . . . . 3 . . . . . . 1 . . . 2 Reinforcement 11 | . . . . . 4 1 . . . . 5 . . . . . . . . . . 1 Assault 5 | . . . . . 1 . . . . . 2 . 1 . 1 . . . . . . . Garrison 2 | . . . . . . . . . . . 1 . . . . . . 1 . . . . Intercept . | . . . . . . . . . . . . . . . . . . . . . . . Searches Triggered . | . . . . . . . . . . . . . . . . . . . . . . . Construction Impeded 2 | . . . . . 1 1 . . . . . . . . . . . . . . . . Haulers Reinforced 1 | . . . . . . . . . . . . . . . . . . . . . . 1 Active Scanning Responses . | . . . . . . . . . . . . . . . . . . . . . . . Cargo Convoy Interrupts 1 | . . . . . . . . . . . 1 . . . . . . . . . . . Stealth | -11 -10 -10 -10 -9 -8 -7 -7 -7 -7 -6 -6 -6 -6 -6 -5 -5 -5 -5 -5 -5 -5 -5 --------- Run | Yrd Mat Min Exi Min Mat Fac Low Low Zio Pro Fac Low Low Dat Pro Fac Was Fac Ext Cet Arc Hub Distress Signals 13 | . . . . . 2 . . . . . 2 . . . . . . 2 1 1 . 5 Communications Jammed . | . . . . . . . . . . . . . . . . . . . . . . . Distress Signals . | . . . . . . . . . . . . . . . . . . . . . . . Times Spotted 215 | . . 11 . . 51 22 5 . . 8 17 5 8 . 19 5 6 7 21 5 4 21 Peak Tracking Total 11 | . . 5 . . 11 4 4 . . 4 4 3 9 . 10 4 6 4 4 5 2 4 Tactical Retreats 20 | . . 2 . . 7 3 . . . . . . 3 . 3 . . . . . . 2 Traps | -11 -10 -10 -10 -9 -8 -7 -7 -7 -7 -6 -6 -6 -6 -6 -5 -5 -5 -5 -5 -5 -5 -5 ------- Run | Yrd Mat Min Exi Min Mat Fac Low Low Zio Pro Fac Low Low Dat Pro Fac Was Fac Ext Cet Arc Hub Traps Triggered 8 | . . . . . 1 3 . . . . . . . . . 1 . 1 2 . . . Indirectly . | . . . . . . . . . . . . . . . . . . . . . . . Trap Hack Attempts . | . . . . . . . . . . . . . . . . . . . . . . . Triggered . | . . . . . . . . . . . . . . . . . . . . . . . Disarmed . | . . . . . . . . . . . . . . . . . . . . . . . Reprogrammed . | . . . . . . . . . . . . . . . . . . . . . . . Reused . | . . . . . . . . . . . . . . . . . . . . . . . Traps Extracted . | . . . . . . . . . . . . . . . . . . . . . . . Installed . | . . . . . . . . . . . . . . . . . . . . . . . Triggered . | . . . . . . . . . . . . . . . . . . . . . . . Machines | -11 -10 -10 -10 -9 -8 -7 -7 -7 -7 -6 -6 -6 -6 -6 -5 -5 -5 -5 -5 -5 -5 -5 ---------- Run | Yrd Mat Min Exi Min Mat Fac Low Low Zio Pro Fac Low Low Dat Pro Fac Was Fac Ext Cet Arc Hub Machines Disabled 37 | . . . . . 2 8 . . . . 12 1 1 . . . . . 3 1 1 8 Max in Single Turn 12 | . . . . . 2 5 . . . . 12 1 1 . . . . . . 1 . . Garrison Access 2 | . . . . . . 1 . . . . 1 . . . . . . . . . . . Machines Repaired . | . . . . . . . . . . . . . . . . . . . . . . . Machines Dismantled . | . . . . . . . . . . . . . . . . . . . . . . . Machines Sabotaged . | . . . . . . . . . . . . . . . . . . . . . . . Overloaded Fab Kills . | . . . . . . . . . . . . . . . . . . . . . . . Hacking | -11 -10 -10 -10 -9 -8 -7 -7 -7 -7 -6 -6 -6 -6 -6 -5 -5 -5 -5 -5 -5 -5 -5 --------- Run | Yrd Mat Min Exi Min Mat Fac Low Low Zio Pro Fac Low Low Dat Pro Fac Was Fac Ext Cet Arc Hub Machines Accessed 27 | . . . 3 . 6 5 1 2 . . 2 1 . 4 . . . . . 3 . . Terminals 8 | . . . . . 4 1 . . . . . . . . . . . . . 3 . . Fabricators 1 | . . . . . . 1 . . . . . . . . . . . . . . . . Repair Stations 2 | . . . . . . 1 . . . . 1 . . . . . . . . . . . Recycling Units 2 | . . . . . 1 1 . . . . . . . . . . . . . . . . Scanalyzers 2 | . . . . . 1 . . . . . 1 . . . . . . . . . . . Garrison Access 1 | . . . . . . 1 . . . . . . . . . . . . . . . . Total Hacks 87 | . . . 16 . 14 10 1 5 . . 7 1 . 28 . . . . . 5 . . Successful 69 | . . . 16 . 7 6 1 5 . . 4 1 . 28 . . . . . 1 . . Failed 17 | . . . . . 6 4 . . . . 3 . . . . . . . . 4 . . Catastrophic 3 | . . . . . 1 1 . . . . . . . . . . . . . 1 . . Database Lockouts 1 | . . . . . 1 . . . . . . . . . . . . . . . . . Manual 86 | . . . . . 9 2 . . . . 10 . . . . 2 . 14 24 1 . 24 Terminals 16 | . . . . . 10 1 . . . . . . . . . . . . . 5 . . Fabricators 1 | . . . . . . 1 . . . . . . . . . . . . . . . . Repair Stations 10 | . . . . . . 5 . . . . 5 . . . . . . . . . . . Recycling Units 4 | . . . . . 2 2 . . . . . . . . . . . . . . . . Scanalyzers 4 | . . . . . 2 . . . . . 2 . . . . . . . . . . . Garrison Access 1 | . . . . . . 1 . . . . . . . . . . . . . . . . Terminal Hacks 54 | . . . 16 . 2 . 1 5 . . . 1 . 28 . . . . . 1 . . Record 33 | . . . 16 . . . . 4 . . . 1 . 11 . . . . . 1 . . Part Schematic 11 | . . . . . . . . . . . . . . 11 . . . . . . . . Robot Schematic 3 | . . . . . . . . . . . . . . 3 . . . . . . . . Prototype ID Bank 3 | . . . . . . . . . . . . . . 3 . . . . . . . . Open Door 2 | . . . . . . . 1 1 . . . . . . . . . . . . . . Branch Access Points 1 | . . . . . 1 . . . . . . . . . . . . . . . . . Emergency Access Points 1 | . . . . . 1 . . . . . . . . . . . . . . . . . Fabricator Hacks . | . . . . . . . . . . . . . . . . . . . . . . . Repair Station Hacks 6 | . . . . . . 4 . . . . 2 . . . . . . . . . . . Scan Component 3 | . . . . . . 2 . . . . 1 . . . . . . . . . . . Repair 3 | . . . . . . 2 . . . . 1 . . . . . . . . . . . Recycling Unit Hacks 3 | . . . . . 2 1 . . . . . . . . . . . . . . . . Report Inventory 2 | . . . . . 1 1 . . . . . . . . . . . . . . . . Retrieve Components 1 | . . . . . 1 . . . . . . . . . . . . . . . . . Scanalyzer 3 | . . . . . 1 . . . . . 2 . . . . . . . . . . . Retrieve Study 3 | . . . . . 1 . . . . . 2 . . . . . . . . . . . Garrison Access Hacks . | . . . . . . . . . . . . . . . . . . . . . . . Unauthorized Hacks 3 | . . . . . 2 1 . . . . . . . . . . . . . . . . Terminals 2 | . . . . . 2 . . . . . . . . . . . . . . . . . Botnet 2 | . . . . . 2 . . . . . . . . . . . . . . . . . Fabricators . | . . . . . . . . . . . . . . . . . . . . . . . Repair Stations . | . . . . . . . . . . . . . . . . . . . . . . . Recycling Units . | . . . . . . . . . . . . . . . . . . . . . . . Scanalyzers . | . . . . . . . . . . . . . . . . . . . . . . . Garrison Access 1 | . . . . . . 1 . . . . . . . . . . . . . . . . Jam 1 | . . . . . . 1 . . . . . . . . . . . . . . . . Data Cores Recovered 1 | . . . . . . . . . . . 1 . . . . . . . . . . . Used . | . . . . . . . . . . . . . . . . . . . . . . . Hacking Detections 13 | . . . . . 5 3 . . . . 2 . . . . . . . . 3 . . Full Trace Events 1 | . . . . . 1 . . . . . . . . . . . . . . . . . Feedback Events . | . . . . . . . . . . . . . . . . . . . . . . . Feedback Blocked . | . . . . . . . . . . . . . . . . . . . . . . . Robot Schematics Acquired 9 | . . . . . . . . . 3 . . . . 3 . . . . 3 . . . Robots Built . | . . . . . . . . . . . . . . . . . . . . . . . Authchips . | . . . . . . . . . . . . . . . . . . . . . . . Time . | . . . . . . . . . . . . . . . . . . . . . . . Total Robot Build Rating . | . . . . . . . . . . . . . . . . . . . . . . . Part Schematics Acquired 47 | . . . . . . . . . 15 . . . . 11 . . . . . . . 21 Parts Built . | . . . . . . . . . . . . . . . . . . . . . . . Authchips . | . . . . . . . . . . . . . . . . . . . . . . . Time . | . . . . . . . . . . . . . . . . . . . . . . . Total Part Build Rating . | . . . . . . . . . . . . . . . . . . . . . . . Part Studies Acquired 3 | . . . . . 1 . . . . . 2 . . . . . . . . . . . Parts Repaired 3 | . . . . . . 2 . . . . 1 . . . . . . . . . . . Time 107 | . . . . . . 88 . . . . 19 . . . . . . . . . . . Parts Recycled . | . . . . . . . . . . . . . . . . . . . . . . . Recycled Matter . | . . . . . . . . . . . . . . . . . . . . . . . Retrieved Matter . | . . . . . . . . . . . . . . . . . . . . . . . Retrieved Components 2 | . . . . . 2 . . . . . . . . . . . . . . . . . Parts Scanalyzed . | . . . . . . . . . . . . . . . . . . . . . . . Part Schematics Acquired . | . . . . . . . . . . . . . . . . . . . . . . . Parts Damaged . | . . . . . . . . . . . . . . . . . . . . . . . Bothacking | -11 -10 -10 -10 -9 -8 -7 -7 -7 -7 -6 -6 -6 -6 -6 -5 -5 -5 -5 -5 -5 -5 -5 ------------ Run | Yrd Mat Min Exi Min Mat Fac Low Low Zio Pro Fac Low Low Dat Pro Fac Was Fac Ext Cet Arc Hub Used RIF Installer . | . . . . . . . . . . . . . . . . . . . . . . . Robots Hacked . | . . . . . . . . . . . . . . . . . . . . . . . Non-combat . | . . . . . . . . . . . . . . . . . . . . . . . Combat . | . . . . . . . . . . . . . . . . . . . . . . . Robot Hacks Applied . | . . . . . . . . . . . . . . . . . . . . . . . Relay Couplers Released 8 | . . . . . . 6 . . . . 2 . . . . . . . . . . . Machine Destruction 5 | . . . . . . 3 . . . . 2 . . . . . . . . . . . Programmers 3 | . . . . . . 3 . . . . . . . . . . . . . . . . Fabnet Peak Effective % . | . . . . . . . . . . . . . . . . . . . . . . . Robots Rewired 18 | . . . . . . . . . . . . . 3 . . . . . 15 . . . Allies Hacked 1 | . . . . . . . . . . . . . . . . . . . . . . 1 Hacks Repelled . | . . . . . . . . . . . . . . . . . . . . . . . Allies | -11 -10 -10 -10 -9 -8 -7 -7 -7 -7 -6 -6 -6 -6 -6 -5 -5 -5 -5 -5 -5 -5 -5 -------- Run | Yrd Mat Min Exi Min Mat Fac Low Low Zio Pro Fac Low Low Dat Pro Fac Was Fac Ext Cet Arc Hub Total Allies 64 | . . 1 . . . . . . 4 . 7 . 3 . . 3 . 4 33 5 . 4 Largest Group 30 | . . 1 1 . . . . . 4 4 6 . 3 2 2 3 3 4 27 30 24 23 Highest-Rated Group 1575 | . . 31 31 . . . . . 149 149 321 . 87 58 58 84 84 272 1157 1575 1223 1110 Highest-Rated Ally 159 | . . 31 31 . . . . . 38 38 70 . 29 29 29 28 28 85 159 159 159 96 Zionite Dispatches 12 | . . . . . . . . . . . 2 . . . . 1 . 2 4 . . 3 Heavy 3 | . . . . . . . . . . . . . . . . . . 1 1 . . 1 Light 4 | . . . . . . . . . . . 1 . . . . . . . 3 . . . Fire 2 | . . . . . . . . . . . 1 . . . . 1 . . . . . . Hacker 1 | . . . . . . . . . . . . . . . . . . 1 . . . . Explosive Resupply 1 | . . . . . . . . . . . . . . . . . . . . . . 1 Melee Resupply 1 | . . . . . . . . . . . . . . . . . . . . . . 1 Total Orders 3 | . . . . . . . . . . . . . . . . . . . . . . 3 STAY 2 | . . . . . . . . . . . . . . . . . . . . . . 2 DROP 1 | . . . . . . . . . . . . . . . . . . . . . . 1 Ally Attacks 478 | . . . . . . . . . . 28 40 . 4 . 16 6 2 22 140 50 23 147 Total Damage 12638 | . . . . . . . . . . 607 624 . 58 . 268 90 21 964 4523 980 730 3773 Kills 83 | . . . . . . . . . . 5 7 . 1 . 1 2 . 8 21 5 5 28 Allies Corrupted 1 | . . . . . . . . . . . . . . . . . . . . . . 1 Allies Melted . | . . . . . . . . . . . . . . . . . . . . . . . Intel | -11 -10 -10 -10 -9 -8 -7 -7 -7 -7 -6 -6 -6 -6 -6 -5 -5 -5 -5 -5 -5 -5 -5 ------- Run | Yrd Mat Min Exi Min Mat Fac Low Low Zio Pro Fac Low Low Dat Pro Fac Was Fac Ext Cet Arc Hub Active Infowar (turns) 14029 | 4918 30 480 593 33 276 . 267 315 1846 454 1726 677 477 111 664 59 122 261 383 . . 337 Optics 3442 | . . . . . . . . . 229 454 1726 677 356 . . . . . . . . . Sensors 3236 | . . . . . . . 267 315 1617 . . . 122 111 664 42 96 2 . . . . IFF 965 | . . . . . . . . . . . . 632 333 . . . . . . . . . Terrain 6446 | 4918 30 480 593 33 276 . . . . . . . . . . 17 99 . . . . . Structural 1128 | . . . . . . . . . . . . . . . . 25 122 261 383 . . 337 Robot Analysis Total . | . . . . . . . . . . . . . . . . . . . . . . . Derelict Logs Recovered 10 | . . 1 . 1 . . . 1 2 1 . 1 2 . 1 . . . . . . . Drone Launches . | . . . . . . . . . . . . . . . . . . . . . . . Drone Recoveries . | . . . . . . . . . . . . . . . . . . . . . . . Zionite Intel Received 11 | . . . . . . . . . . . 1 . . . . . . 2 4 . . 4 Branch Access 1 | . . . . . . . . . . . . . . . . . . . 1 . . . Emergency Access 2 | . . . . . . . . . . . 1 . . . . . . . . . . 1 Component Stockpiles 1 | . . . . . . . . . . . . . . . . . . . 1 . . . Prototype Stockpiles 1 | . . . . . . . . . . . . . . . . . . . 1 . . . Component Schematics 1 | . . . . . . . . . . . . . . . . . . . . . . 1 Prototype Schematics 1 | . . . . . . . . . . . . . . . . . . . . . . 1 Unaware Schematics 1 | . . . . . . . . . . . . . . . . . . . 1 . . . Unaware Analyses 2 | . . . . . . . . . . . . . . . . . . 1 . . . 1 Depthwide Sectors/0 1 | . . . . . . . . . . . . . . . . . . 1 . . . . Exploration | -11 -10 -10 -10 -9 -8 -7 -7 -7 -7 -6 -6 -6 -6 -6 -5 -5 -5 -5 -5 -5 -5 -5 ------------- Run | Yrd Mat Min Exi Min Mat Fac Low Low Zio Pro Fac Low Low Dat Pro Fac Was Fac Ext Cet Arc Hub Turns Passed 19276 | 5020 30 565 593 33 909 1658 286 315 1868 454 1726 677 477 111 720 258 122 661 1243 212 166 1172 Spaces Moved 9484 | 212 26 378 477 18 671 986 213 253 1378 278 644 564 396 96 449 165 124 655 834 184 87 396 Core 199 | 6 . . . . . . . . . . . . . . . . 41 152 . . . . Treads . | . . . . . . . . . . . . . . . . . . . . . . . Legs 6896 | 206 26 378 477 18 286 986 213 253 1378 278 644 564 396 96 449 165 83 . . . . . Wheels . | . . . . . . . . . . . . . . . . . . . . . . . Hover 2004 | . . . . . . . . . . . . . . . . . . 503 834 184 87 396 Flight 385 | . . . . . 385 . . . . . . . . . . . . . . . . . Fastest Speed 26 | 50 120 120 120 190 26 125 125 125 125 130 110 110 110 110 110 115 50 50 59 59 59 59 Average Speed 106 | 118 120 120 124 190 79 126 125 125 126 130 115 110 110 110 110 115 94 73 83 59 61 59 Slowest Speed 315 | 120 120 120 190 190 315 130 125 125 130 130 130 110 110 110 180 185 185 144 144 59 136 66 Overloaded Moves . | . . . . . . . . . . . . . . . . . . . . . . . Propulsion Burnouts . | . . . . . . . . . . . . . . . . . . . . . . . Robots Hopped 12 | . . . . . 12 . . . . . . . . . . . . . . . . . Potential Cave-ins 16 | . . . . . 2 . . . . . . 2 . . . . . . . . . 12 Cave-ins Triggered 22 | . . . . . . . . . . . . . . . . . . . . . . 22 Exploration Rate (%) 50 | 6 9 78 91 13 51 29 41 41 90 48 22 65 70 70 68 4 76 18 84 69 66 48 Regions Visited 22 Branch Regions 15 Pre-discovered Areas 14 | . . . 1 . . . . 2 2 . . . . 1 . . . 8 . . . . Known Exits Taken 12 | . . . . . 1 1 1 1 1 1 . . 1 1 1 . . 1 1 1 . . Unknown Exits Taken 8 | 1 1 1 1 1 . . . . . . 1 1 . . . . . . . . 1 . Scrap Searched 14 | . . 1 . . . . 2 . 4 2 . 2 1 . 2 . . . . . . . Spaces Dug 160 | . . . . . 7 29 . . . . 58 52 . . 14 . . . . . . . Terrain Destroyed 600 | . . . . . 58 156 33 . . . 134 73 16 . 130 . . . . . . . Melee . | . . . . . . . . . . . . . . . . . . . . . . . Projectile 48 | . . . . . 38 8 1 . . . 1 . . . . . . . . . . . AOE 552 | . . . . . 20 148 32 . . . 133 73 16 . 130 . . . . . . . Terrain Rammed . | . . . . . . . . . . . . . . . . . . . . . . . Walls Destroyed . | . . . . . . . . . . . . . . . . . . . . . . . Machines Disabled . | . . . . . . . . . . . . . . . . . . . . . . . Actions | -11 -10 -10 -10 -9 -8 -7 -7 -7 -7 -6 -6 -6 -6 -6 -5 -5 -5 -5 -5 -5 -5 -5 --------- Run | Yrd Mat Min Exi Min Mat Fac Low Low Zio Pro Fac Low Low Dat Pro Fac Was Fac Ext Cet Arc Hub Total 18072 | 4895 25 429 478 17 913 1296 221 252 1503 354 1589 610 421 101 637 226 128 797 1373 281 197 1329 Wait 7719 | 4634 . 16 . . 122 194 1 . 95 65 891 25 9 . 154 45 3 96 268 84 105 912 Move 9440 | 211 25 377 476 17 647 985 212 252 1377 277 643 563 395 95 448 165 123 654 833 183 86 396 Hop 11 | . . . . . 11 . . . . . . . . . . . . . . . . . Pick Up 54 | 1 . 3 1 . 16 9 2 . 4 . 4 . . . 4 1 . 4 2 . . 3 Fast Attach 99 | 7 . 1 . . 20 14 . . 5 1 6 6 . 3 . 4 . 16 8 4 3 1 Attach 45 | . . 1 . . 7 8 . . 3 . 3 1 1 . 6 5 . 2 4 1 . 3 Detach 29 | . . 1 . . 8 1 . . 4 . . 2 . . 1 2 2 . 6 1 . 1 Swap 39 | . . . 1 . 4 7 1 . 3 2 7 2 3 . 6 . . . . . 1 2 Drop 91 | . . . . . 18 19 . . 10 1 9 3 . 3 . . . 7 6 5 2 8 Fire 287 | 42 . 30 . . 58 58 5 . 2 7 24 6 7 . 18 3 . 18 3 3 . 3 Melee 2 | . . . . . 1 . . . . 1 . . . . . . . . . . . . Ram . | . . . . . . . . . . . . . . . . . . . . . . . Kick 7 | . . . . . 1 1 . . . . 2 2 . . . 1 . . . . . . Crush . | . . . . . . . . . . . . . . . . . . . . . . . Escape Stasis 13 | . . . . . . . . . . . . . . . . . . . 13 . . . Rewire 236 | . . . . . . . . . . . . . 6 . . . . . 230 . . . Trap . | . . . . . . . . . . . . . . . . . . . . . . . Miscellaneous . | . . . . . . . . . . . . . . . . . . . . . . . Route ------- -11/Scrapyard -10/Materials -10/Mines -10/Exiles -9/Mines -8/Materials (discovered 2 exits: *Fac x2) -7/Factory (discovered 3 exits: *Fac / Sto / *Low) -7/Lower Caves -7/Lower Caves -7/Zion -6/Proximity Caves -6/Factory -6/Lower Caves -6/Lower Caves -6/Data Miner -5/Proximity Caves -5/Factory (discovered 3 exits: Fac / Ext x2) -5/Waste -5/Factory -5/Extension (discovered 3 exits: *Fac x2 / *Cet) -5/Cetus -5/Archives -5/Hub_04(d) (discovered 2 exits: *Fac x2) History --------- Turn | Location | Event 5 | -11/Scrapyard | Discovered new exit (range 15) 5021 | -11/Scrapyard | Entered Materials 5022 | -10/Materials | Build established: Mutant 5035 | -10/Materials | Discovered new exit (range 14) 5051 | -10/Materials | Entered Mines 5544 | -10/Mines | Received a Mining Laser from a helpful Derelict 5598 | -10/Mines | Deemed a non-threat by the Exiles lab entrance 5599 | -10/Mines | Discovered new exit (range 5) 5616 | -10/Mines | Entered Exiles 5616 | -10/Exiles | Accompanied by 1 ally 5646 | -10/Exiles | Met 8R-AWN 5667 | -10/Exiles | Met EX-HEX 5705 | -10/Exiles | Met EX-BIN 5817 | -10/Exiles | Met EX-DEC 5828 | -10/Exiles | Learned location of Zion (-7) 5950 | -10/Exiles | Visited The Gauntlet 6190 | -10/Exiles | Discovered new exit (range 12) 6209 | -10/Exiles | Entered Mines 6219 | -9/Mines | Learned location of 2 exits from Materials 6227 | -9/Mines | Discovered new exit (range 10) 6242 | -9/Mines | Entered Materials 6242 | -8/Materials | Evolved 4 slots: Propulsion x2, Utility x1, Weapon x1 6243 | -8/Materials | Identified exit to Factory 6549 | -8/Materials | Lost 6 parts (1p2n1u2w) 6703 | -8/Materials | Central database locked down 7004 | -8/Materials | Build established: Gunner 7042 | -8/Materials | First assault squad dispatched 7151 | -8/Materials | Entered Factory 7151 | -7/Factory | Evolved 2 slots: Power x1, Utility x1 7152 | -7/Factory | Identified exit to Storage 8028 | -7/Factory | Repaired Imp. Titanium Leg 8073 | -7/Factory | Repaired Imp. Titanium Leg 8466 | -7/Factory | Discovered new exit (range 13) 8486 | -7/Factory | Identified exit to Factory 8790 | -7/Factory | Discovered new exit (range 16) 8808 | -7/Factory | Identified exit to Lower Caves 8809 | -7/Factory | Entered Lower Caves 8858 | -7/Lower Caves | Entered a destroyed Warlord outpost 8881 | -7/Lower Caves | Encountered a Warlord checkpoint 9089 | -7/Lower Caves | Discovered new exit (range 6) 9094 | -7/Lower Caves | Identified exit to Lower Caves 9095 | -7/Lower Caves | Entered another Lower Caves area 9115 | -7/Lower Caves | Build established: Skirmisher 9183 | -7/Lower Caves | Entered an active Warlord outpost 9198 | -7/Lower Caves | Learned Extension emergency access door positions 9198 | -7/Lower Caves | Learned Armory security intel 9402 | -7/Lower Caves | Discovered new exit (range 7) 9409 | -7/Lower Caves | Identified exit to Zion 9410 | -7/Lower Caves | Entered Zion 9478 | -7/Zion | Discovered new exit (range 12) 9492 | -7/Zion | Identified exit to Proximity Caves 9621 | -7/Zion | System corruption cleaned by Quarantine Array 9718 | -7/Zion | Learned Factory terminal intel 9789 | -7/Zion | Found CR-A16's Pointy Stick 9831 | -7/Zion | Learned 8 Factory zone layouts 9984 | -7/Zion | Met Imprinter 10243 | -7/Zion | Found Prototype Energy Gun 10429 | -7/Zion | Learned location of Warlord (-4) 10850 | -7/Zion | Imprinted 10852 | -7/Zion | Declared Zion's savior 11018 | -7/Zion | Found Prototype Hackware 11028 | -7/Zion | Found Prototype Processor 11028 | -7/Zion | Identified Exp. Armor Integrity Analyzer 11038 | -7/Zion | Found Prototype Processor 11038 | -7/Zion | Identified Exp. Melee Analysis Suite 11043 | -7/Zion | Found Prototype Processor 11043 | -7/Zion | Identified Exp. Core Analyzer 11278 | -7/Zion | Entered Proximity Caves 11278 | -6/Proximity Caves | Accompanied by 4 allies 11298 | -6/Proximity Caves | Build established: Gunner 11424 | -6/Proximity Caves | Spotted B-75 Beast 11443 | -6/Proximity Caves | Allies destroyed B-75 Beast 11688 | -6/Proximity Caves | Discovered exit to Factory (range 19) 11707 | -6/Proximity Caves | Learned Factory security intel 11732 | -6/Proximity Caves | Entered Factory 11732 | -6/Factory | Accompanied by 3 allies 11732 | -6/Factory | Evolved 2 slots: Utility x2 11735 | -6/Factory | Loaded intel: 25 terminal locations 11773 | -6/Factory | Zion Light squad teleported in 11991 | -6/Factory | Identified Exp. Hacking Suite 12011 | -6/Factory | Repaired Hardlight Generator 12356 | -6/Factory | Cargo convoy interrupted 13169 | -6/Factory | Retrieved Zion intel report: Emergency Access 13170 | -6/Factory | Zion Fire squad teleported in 13244 | -6/Factory | Terminal network hard line cut 13384 | -6/Factory | Discovered new exit (range 19) 13458 | -6/Factory | Entered Lower Caves 13569 | -6/Lower Caves | Found Alien Artifact 13569 | -6/Lower Caves | Identified Dimensional Node Initializer 13569 | -6/Lower Caves | Initialized slip node 13880 | -6/Lower Caves | Encountered a Warlord checkpoint 13978 | -6/Lower Caves | Attracted the attention of an 0b10 checkpoint 14061 | -6/Lower Caves | Spotted B-75 Beast 14131 | -6/Lower Caves | Discovered new exit (range 5) 14135 | -6/Lower Caves | Entered another Lower Caves area 14136 | -6/Lower Caves | Encountered a Warlord checkpoint 14176 | -6/Lower Caves | Attracted the attention of an 0b10 outpost 14305 | -6/Lower Caves | Learned Factory interactive machine intel 14462 | -6/Lower Caves | Attacked by a delusional Derelict stockpiling Unaware 14543 | -6/Lower Caves | Attracted the attention of an 0b10 checkpoint 14598 | -6/Lower Caves | Discovered new exit (range 8) 14604 | -6/Lower Caves | Identified exit to Data Miner 14612 | -6/Lower Caves | Entered Data Miner 14612 | -6/Data Miner | Accompanied by 2 allies 14614 | -6/Data Miner | Discovered new exit (range 6) 14635 | -6/Data Miner | Met Data Miner 14659 | -6/Data Miner | Learned location of Section 7 (-2) 14659 | -6/Data Miner | Acquired the access code to Warlord's prototype stash 14677 | -6/Data Miner | Received God Mode back door access code from Data Miner 14722 | -6/Data Miner | Identified exit to Proximity Caves 14723 | -6/Data Miner | Entered Proximity Caves 14723 | -5/Proximity Caves | Accompanied by 2 allies 14742 | -5/Proximity Caves | Learned location of 1 exit from Factory 15303 | -5/Proximity Caves | Build established: Mutant 15376 | -5/Proximity Caves | Attracted the attention of an 0b10 outpost 15434 | -5/Proximity Caves | Core integrity fell below 50% 15434 | -5/Proximity Caves | Discovered new exit (range 8) 15442 | -5/Proximity Caves | Identified exit to Factory 15443 | -5/Proximity Caves | Entered Factory 15443 | -5/Factory | Evolved 2 slots: Utility x1, Weapon x1 15444 | -5/Factory | Identified exit to Extension 15444 | -5/Factory | Identified Storm Laser 15445 | -5/Factory | Identified exit to Factory 15446 | -5/Factory | Loaded intel: 56 interactive machine locations 15461 | -5/Factory | Lost 6 parts (2p1n1u2w) 15694 | -5/Factory | Zion Fire squad teleported in 15701 | -5/Factory | Sucked down chute 15701 | -5/Factory | Entered Waste 15716 | -5/Waste | EMP discharged 15719 | -5/Waste | Spotted C-40 Crusher 15721 | -5/Waste | Spotted C-40 Crusher 15726 | -5/Waste | 3 allies followed down the chute 15733 | -5/Waste | Spotted C-40 Crusher 15743 | -5/Waste | Spotted C-40 Crusher 15744 | -5/Waste | Spotted C-40 Crusher 15780 | -5/Waste | Lost 3 allies 15786 | -5/Waste | Spotted C-40 Crusher 15790 | -5/Waste | Crushed by Compactor (0 parts destroyed, 1 dropped) 15797 | -5/Waste | Crushed by Compactor (1 part destroyed, 1 dropped) 15800 | -5/Waste | Crushed by Compactor (1 part destroyed) 15802 | -5/Waste | Crushed by Compactor (1 part destroyed) 15816 | -5/Waste | EMP discharged 15816 | -5/Waste | System corruption reached 10% 15818 | -5/Waste | Discovered new exit (range 11) 15822 | -5/Waste | Identified exit to Factory 15823 | -5/Waste | Entered Factory 15833 | -5/Factory | Lost 4 parts (1p1n2u) 16122 | -5/Factory | Zion Heavy squad teleported in 16234 | -5/Factory | Retrieved Zion intel report: Depthwide Sectors/-5 16240 | -5/Factory | Retrieved Zion intel report: Unaware Analyses 16241 | -5/Factory | Zion Hacker squad teleported in 16276 | -5/Factory | Garrison activated, responded to threat 16425 | -5/Factory | Discovered exit to Extension (range 14) 16484 | -5/Factory | Entered Extension 16484 | -5/Extension | Accompanied by 3 allies 16629 | -5/Extension | Zion Heavy squad teleported in 16650 | -5/Extension | Zion Light squad teleported in 16652 | -5/Extension | Zion Light squad teleported in 16654 | -5/Extension | Build established: Scavenger-Gunner 16850 | -5/Extension | Spotted B-75 Beast 16863 | -5/Extension | Allies destroyed B-75 Beast 16870 | -5/Extension | Spotted B-75 Beast 16883 | -5/Extension | Allies destroyed B-75 Beast 16912 | -5/Extension | Lost 5 allies 16922 | -5/Extension | Rescued a captive Derelict 16923 | -5/Extension | Rescued a captive Derelict 17056 | -5/Extension | Retrieved Zion intel report: Unaware Schematics 17159 | -5/Extension | Build established: Messiah-Tank 17169 | -5/Extension | Discovered exit to Factory (range 3) 17187 | -5/Extension | Retrieved Zion intel report: Prototype Stockpiles 17188 | -5/Extension | Retrieved Zion intel report: Branch Access 17188 | -5/Extension | Identified exit to Cetus 17194 | -5/Extension | Rescued a captive Derelict 17200 | -5/Extension | Rescued a captive Derelict 17444 | -5/Extension | Rescued A7 17461 | -5/Extension | Retrieved Zion intel report: Component Stockpiles 17462 | -5/Extension | Zion Light squad teleported in 17467 | -5/Extension | Rescued a captive Derelict 17467 | -5/Extension | Rescued a captive Derelict 17595 | -5/Extension | Build established: Commander-Tank 17610 | -5/Extension | Discovered exit to Factory (range 10) 17727 | -5/Extension | Entered Cetus 17727 | -5/Cetus | Accompanied by 27 allies (A7) 17732 | -5/Cetus | Acquired a Cetus Manufacturing Module code from A7 17736 | -5/Cetus | Spotted Cetus Guard 17736 | -5/Cetus | Spotted Cetus Guard 17739 | -5/Cetus | Spotted Cetus Guard 17739 | -5/Cetus | Spotted Cetus Guard 17756 | -5/Cetus | Allies destroyed Cetus Guard 17757 | -5/Cetus | Allies destroyed Cetus Guard 17761 | -5/Cetus | Allies destroyed Cetus Guard 17764 | -5/Cetus | Allies destroyed Cetus Guard 17801 | -5/Cetus | Started Cetus Manufacturing Module 17808 | -5/Cetus | Escorted A7 to Cetus Mainframe 17826 | -5/Cetus | Manufactured an Enhanced Grunt 17850 | -5/Cetus | Discovered new exit (range 16) 17851 | -5/Cetus | Manufactured an Enhanced Grunt 17859 | -5/Cetus | Identified exit to Archives 17876 | -5/Cetus | Manufactured an Enhanced Grunt 17901 | -5/Cetus | Manufactured an Enhanced Grunt 17926 | -5/Cetus | Manufactured an Enhanced Grunt 17939 | -5/Cetus | Entered Archives 17939 | -5/Archives | Accompanied by 24 allies (A7) 17944 | -5/Archives | Received a hacking code to weaken MAIN.C 17992 | -5/Archives | Discovered new exit (range 16) 18105 | -5/Archives | Entered Hub_04(d) 18105 | -5/Hub_04(d) | Accompanied by 21 allies 18119 | -5/Hub_04(d) | Retrieved Zion intel report: Unaware Analyses 18120 | -5/Hub_04(d) | Zion Heavy squad teleported in 18191 | -5/Hub_04(d) | Discovered exit to Factory (range 5) 18212 | -5/Hub_04(d) | Retrieved Zion intel report: Prototype Schematics 18217 | -5/Hub_04(d) | Retrieved Zion intel report: Component Schematics 18255 | -5/Hub_04(d) | Retrieved Zion intel report: Emergency Access 18256 | -5/Hub_04(d) | Zion Explosive Resupply teleported in 18339 | -5/Hub_04(d) | Zion Melee Resupply teleported in 18342 | -5/Hub_04(d) | Discovered exit to Factory (range 8) 18389 | -5/Hub_04(d) | Lost 3 allies 18447 | -5/Hub_04(d) | Lost 3 allies 18490 | -5/Hub_04(d) | Crushed by falling debris 18498 | -5/Hub_04(d) | Crushed by falling debris 18498 | -5/Hub_04(d) | System corruption reached 30% 18529 | -5/Hub_04(d) | Lost 6 parts (1n5u) 18572 | -5/Hub_04(d) | Crushed by falling debris 18603 | -5/Hub_04(d) | Crushed by falling debris 18634 | -5/Hub_04(d) | Lost 3 parts (2p1n) 18668 | -5/Hub_04(d) | Crushed by falling debris 18723 | -5/Hub_04(d) | Crushed by falling debris 18732 | -5/Hub_04(d) | Crushed by falling debris 18743 | -5/Hub_04(d) | Build established: Commander-Mutant 18754 | -5/Hub_04(d) | Crushed by falling debris 18832 | -5/Hub_04(d) | Crushed by falling debris 18882 | -5/Hub_04(d) | Crushed by falling debris 18941 | -5/Hub_04(d) | Crushed by falling debris 18952 | -5/Hub_04(d) | Crushed by falling debris 18991 | -5/Hub_04(d) | Crushed by falling debris 18993 | -5/Hub_04(d) | Crushed by falling debris 18993 | -5/Hub_04(d) | Core integrity fell below 50% 19004 | -5/Hub_04(d) | Crushed by falling debris 19013 | -5/Hub_04(d) | Crushed by falling debris 19023 | -5/Hub_04(d) | Crushed by falling debris 19100 | -5/Hub_04(d) | Crushed by falling debris 19139 | -5/Hub_04(d) | Crushed by falling debris 19139 | -5/Hub_04(d) | Core integrity fell below 20% 19168 | -5/Hub_04(d) | Crushed by falling debris 19253 | -5/Hub_04(d) | Crushed by falling debris 19278 | -5/Hub_04(d) | Crushed by falling debris 19278 | -5/Hub_04(d) | Smashed by cave-in Last Messages --------------- 19100_ The unstable cave ceiling collapses. 19100_ Crushed by falling debris. 19115_ System corrupted: Matter fused (-5). 19130_ System corrupted: Matter fused (-7). 19139_ The unstable cave ceiling collapses. 19139_ Crushed by falling debris. 19162_ System corrupted: Component data lost. 19168_ The unstable cave ceiling collapses. 19168_ Crushed by falling debris. 19177_ System corrupted: Substantial component data lost. 19192_ System corrupted: IFF burst signal emitted. 19207_ 7LE#FPJ:EVSBZIFHWW RL<7%M5=M0 19222_ System corrupted: Matter fused (-5). 19241_ ALERT: Hostile activity reported, dispatching reinforcements to area. 19253_ The unstable cave ceiling collapses. 19253_ Crushed by falling debris. 19263_ System corrupted: Heat flow error (+114). 19278_ The unstable cave ceiling collapses. 19278_ Crushed by falling debris. Map ----- +----------------------------------------------------+ | ???## " " " # # ######### ##### | | ???## " " " # # ! ######### #######+##### | | ???## " " " / # / =% | | ???## # ###/###+######## % % | | ???######+#### ### ###%########/##+###### | | ???####! ! %# ### ### ##???? #% | | ?????## !/= ### ###!#### """ """ """ /* | | ?????## ]] " # ! #### # | | ?????## =] " # =[[[ + ! ! ] /# ##### | | ?????## ] " ######*[#########+###+####### # | | ?????## ######%%%#! ####### # ??? | | ?????###### #######==##! """" ""?? ##???## # ??? | | ?????############ #[%=#! """" ""????????## # ??? | | ?????????#####?####===# """" """" ##???## + ??? | | ???????????????###]!%=#! """" """" ##???## # ??? | | ????????????????## =[%# ####?## # ??? | | ????????????????##% <*+| """" """" ####?## # ??? | | ????????????????## # """" """" + ??? ##??? | | ????????????????####### """" """" ##????????????? | | ????????????????####### """" """" ##???????????+? | | ???????????????????#### !%* ##????????????? | | ?????????????????????## !% = ##????????????? | | ?????????????????????######/#########????????????? | | ?????????????????????###### #########????????????? | | ???????????????????????####=![##?????????????????? | | ???????????????????????##@#%[=##???????+?????????? | | ???????????????????????####[####?????????????????? | | ??????????????????????? ###%%###?????????????????? | | ??????????????????????? ###!###??+???????????????? | | ??????????????????????? # =/!# ??????????????????? | | ?????????????????????????? ????????????????????? | | ????????????????????????? T ????????????????????? | | ????????????????????????# #???????????????????? | | ???????????????+????????## ##???????????????????? | | ????????????????????????## ##??????????????????+? | | ????????????????????????## ?????????????????????? | | ?????????????+??????????## ??????????????+??????? | | ????????????????????????## ?????????????????????? | | ????????????????????????# ?????????????????????? | | ?????????????????????????????????????????????????? | | ?????????????????????????????????????????????????? | | ?????????????????????????????????????????????????? | | ?????????????????????????????????????????????????? | | ?????????????????????????????????????????????????? | | ?????????????????????????????????????????????????? | | ?????????????????????????????????????????????????? | | ?????????????????????????????????????????????????? | | ?????????????????????????????????????????????????? | | ??????????????????????????????????????????????+??? | | ?????????????????????????????????????????????????? | +----------------------------------------------------+ Best States ------------- Heat Dissipation 66 Coolant Potential 65 Energy Generation 49 Energy Capacity 700 Matter Stores 300 Matter Capacity 300 Sight Range 23 Robot Scan Range 15 Terrain Scan Range 16 Terrain Scan Density 210 Armor Coverage 625 Phase Shifting 5 Evasion (%) 72 Targeting Accuracy 8 Melee Accuracy 12 Target Analysis 5 Core Analysis 6 Armor Integrity Analysis 50 Offensive Hacking 16 Defensive Hacking 10 Item Schematics ----------------- Recalibrator | -7/Zion | Archive Angular Momentum Engine | -7/Zion | Archive Hvy. Flak Cannon | -7/Zion | Archive Core Analyzer | -7/Zion | Archive Adv. Signal Interpreter | -7/Zion | Archive Med. Treads | -7/Zion | Archive Wave Gun | -7/Zion | Archive Imp. Transmission Jammer | -7/Zion | Archive Powered Hammer | -7/Zion | Archive IFF Parser | -7/Zion | Archive Adv. Terrain Scan Processor | -7/Zion | Archive Focal Shield | -7/Zion | Archive Lightning Gun | -7/Zion | Archive Coil Gun | -7/Zion | Archive Energy Filter | -7/Zion | Archive Combat Drone Bay | -6/Data Miner | Free Lgt. Regenerative Plating | -6/Data Miner | Free Enh. Armored Leg | -6/Data Miner | Free Prc. Energy Filter | -6/Data Miner | Free Cld. Plasma Rifle | -6/Data Miner | Free Imp. Linear Gravjet | -6/Data Miner | Free Imp. Point Defense System | -6/Data Miner | Free Hvy. Disruptor Cannon | -6/Data Miner | Free Centrium Wheel | -6/Data Miner | Free Dispersion Rifle | -6/Data Miner | Free Q-thruster | -6/Data Miner | Free Kinetic Spear | -5/Hub_04(d) | Z-intel Cld. Plasma Cannon | -5/Hub_04(d) | Z-intel Cld. Cesium-ion Thruster | -5/Hub_04(d) | Z-intel Imp. Heavy Laser | -5/Hub_04(d) | Z-intel Cld. Particle Cannon | -5/Hub_04(d) | Z-intel Imp. Matter Compressor | -5/Hub_04(d) | Z-intel Imp. Lightning Gun | -5/Hub_04(d) | Z-intel Imp. Energy Well | -5/Hub_04(d) | Z-intel Particle Charger | -5/Hub_04(d) | Z-intel Imp. Remote Datajack | -5/Hub_04(d) | Z-intel ECM Suite | -5/Hub_04(d) | Z-intel Thunder Leg | -5/Hub_04(d) | Z-intel Com. Battery | -5/Hub_04(d) | Z-intel Lyr. Medium Armor Plating | -5/Hub_04(d) | Z-intel Field Propulsion Drive | -5/Hub_04(d) | Z-intel System Shield | -5/Hub_04(d) | Z-intel Dynamic Insulation System | -5/Hub_04(d) | Z-intel Component Analysis Suite | -5/Hub_04(d) | Z-intel Great Maul | -5/Hub_04(d) | Z-intel Huge Storage Unit | -5/Hub_04(d) | Z-intel Adv. Shield Generator | -5/Hub_04(d) | Z-intel Robot Schematics ------------------ R-06 Scavenger | -7/Zion | Archive L-41 Fighter | -7/Zion | Archive Y-72 Warden | -7/Zion | Archive S-27 Virus | -6/Data Miner | Free B-60 Warrior | -6/Data Miner | Free R-10 Processor | -6/Data Miner | Free A-15 Conveyor | -5/Extension | Z-intel G-50 Soldier | -5/Extension | Z-intel T-07 Excavator | -5/Extension | Z-intel Fabricated ------------ Nothing Repaired ---------- Imp. Titanium Leg | 5% | -7/Factory Imp. Titanium Leg | 33% | -7/Factory Hardlight Generator | 56% | -6/Factory Studied --------- Surge Thruster | -8/Materials | Hacked Hvy. Missile Launcher | -6/Factory | Hacked Rnf. Deuterium Engine | -6/Factory | Hacked Alien Tech Used ----------------- Dimensional Node Initializer Achievements -------------- A Problem For Future Me About That Survey... Botjacking DATA ERROR: Steam Global Achievement% For Emergencies Only Heavy Suspicion I Have A Map? Into The Breach Item+ Jackpot My Bad Organ Harvest Overwhelming Spot Them First There's More Where That Came From Challenges ------------ None Game ------ Seed ControlAerolevExtractor Manual? 0 Play Time 02:18:50 Cumulative 369.8 hours Start 2025.10.22 @ 18:14:37 End 2025.10.22 @ 21:30:54 Sessions 1 Manual Loads 0 Difficulty Rogue Special Mode None Game No. 154 Rogue 83 Adventurer 68 Explorer 3 Win Type - Total 30 Types 18/2/2/4/3/0/0/0/0/1 Lore% 77 Gallery% 75 Achievement% 43 Wizard Run 0 Options --------- Layout 0 ASCII 0 Keyboard 0 Movement Numpad Keybinds 0 Fullscreen 1 Font 24/Smallcaps Map View 76x50 Zoom Use 0% Tactical HUD 1 Map Filters NONE Filters NONE Steam 1 RUN: cb59f2ed-005c-4935-b007-e349134f9abb